{"text_format":"3","workbook":"xlsx","n_sheets":13,"sheets":["開始","基本操作","関数の概要","平均","最小値と最大値","日付と時刻","テキストと数値の結合","IF ステートメント","VLOOKUP","条件付き関数","関数ウィザード","数式のエラー","詳細情報"],"not_rendered":{"images":31,"defined_names":21},"read":"whole","date_system":"1900"}

{"sheet":"開始","index":0,"n_rows":4,"n_cols":1,"rows_kept":4}
[]
["数式の使用を開始する"]
["わずかな手順で、世界一強力なスプレッドシート アプリケーションである Excel を使用して、数式と関数を構築できます。"]
["Ctrl + Home キーを押して、ページのトップに戻ります。ツアーを開始するには、Ctrl + PageDown キーを押します。"]

{"sheet":"基本操作","index":1,"n_rows":43,"n_cols":10,"rows_kept":43}
["基本: Excel で計算を実行する"]
["Excel では、組み込み関数を使用せずに加算、減算、乗算、除算を行うことができます。基本的な演算子 +、-、*、/ を使用するだけです。すべての数式は等号 (=) で始まります。\n",null,"使用する番号:",null,"操作:","数式:","回答:"]
["加算するには、セル F3 を選択し、「= C4 + C3」と入力して、Enter キーを押します。 \n",null,1,null,"加算 (+) ",null,{"$f":"C3+C4","v":3}]
["減算するには、セル F4 を選択し、「=C3-C4」と入力して、Enter キーを押します。 ",null,2,null,"減算 (-) ",null,{"$f":"C3-C4","v":-1}]
["乗算するには、セル F5 を選択し、「=C3*C4」と入力して Enter キーを押します。\n",{"$nulls":3},"乗算 (*) ",null,{"$f":"C3*C4","v":2}]
["除算するには、セル F6 を選択し、「=C3/C4」と入力して、Enter キーを押します。\n",{"$nulls":3},"除算 (/) ",null,{"$f":"C3/C4","v":0.5}]
["ここでは、セル C3 と C4 の数字を変更し、式の結果が自動的に変更されることを確認します。",{"$nulls":3},"累乗 (^) ",null,{"$f":"C3^C4","v":1}]
["特別課題:=A1^A2 のようにキャレット記号 (^) を使用して、値を累乗することができます。これは、Shift キーを押しながら 6 キーを押して入力します。セル F7 に「= C3 ^ C4」と入力します。"]
["さらに詳しく"]
["次の手順へ"]
["数式、セル、範囲に関する詳細情報"]
["Excel は、行と列にグループ化されている個々のセルで構成されています。行には番号が付けられ、列には文字が付けられています。100 万行 × 16,000 列以上が含まれており、その任意の場所に数式を設定できます。 \n"]
["数式には、セル参照、セル参照の範囲、演算子、および定数を含めることができます。以下はすべて数式の例です。\n\n=A1+B1\n=10+20\n=SUM(A1:A10)\n\n"]
["上の 3 番目の例で、SUM 関数を使用したことがわかります。関数とは、あらかじめ作成されたコマンドのことで、1 つ以上の値を受け取り、特定の方法で計算して結果を返します。たとえば、SUM 関数は、指定したセル参照またはセル範囲を受け取り、その合計を計算します。この例では、セル A1 から A10 を受け取り、それらを集計します。Excel では、400 を超える関数があり、[数式] タブで確認することができます。\n"]
["関数を含む数式は等号で始まり、かっこで囲まれた関数名とその引数 (関数が計算に使用する値) が続きます。 \n"]
["数式を確認するには、Enter キーを押します。Enter キーを押すと、数式が計算され、セルに結果が表示されます。数式自体を表示するには、リボンの下にある数式バーで確認するか、F2 キーを押して編集モードにすると、セルに数式が表示されます。Enter キーをもう一度押すと、数式が確定し、結果が計算されます。\n\n"]
["いくつかの数式の説明"]
["=10+20 は、数式です。ここで、10 と 20 は定数、+ 記号は演算子です。"]
["=SUM(A1:A10) は数式です。ここで、SUM は関数名で、左かっこと右かっこに数式の引数が含まれています。A1:A10 は、関数のセル範囲です。"]
["=SUM(A1:A10,C1:C10) は数式です。ここで、SUM は関数名で、左かっこと右かっこに数式の引数が含まれています。A1:A10,C1:C10 は、コンマで区切られた関数のセル範囲です。"]
["補足情報:定数は、セルまたは数式に入力する値です。=10+20 は =A1+B1 と同様に計算されることがありますが、定数は使用しないことをお勧めします。なぜでしょうか?セルを選択して探さないと、定数を簡単に表示できないためです。そのため、後で変更が困難になることがあります。定数をセルに入れるほうが簡単です。それらを簡単に調整して、数式で参照することができます。\n\n例:下の 12 が含まれる黄色のセルを選択します。セルの範囲を使う SUM 関数が使用されています。数式に \"4\" や \"8\" を直接入力していません。 \n"]
["前へ​​"]
["次へ"]
["Web 上のその他の情報"]
["Excel を電卓として使用する"]
["Excel の数式の概要"]
["Excel の関数 (カテゴリ順) "]
["Excel 関数 (アルファベット順) "]
["Excel の無料オンライン トレーニング"]
{"$rows_empty":10}
[{"$nulls":9},"値"]
[{"$nulls":9},4]
[{"$nulls":9},8]
[{"$nulls":9},{"$f":"SUM(J41:J42)","v":12}]

{"sheet":"関数の概要","index":2,"n_rows":51,"n_cols":7,"rows_kept":51}
["関数の概要"]
["関数では、算術演算の実行、値の検索、日付と時刻の計算など、さまざまな操作を実行することができます。SUM 関数を使って値を加算するいくつかの方法を試してみましょう。",null,"果物","金額",null,"肉類","金額"]
["果物の [金額] 列の下 (セル D7) に「= SUM(D3:D6)」と入力するか、「= SUM」と入力してマウスで範囲を選択して、Enter キーを押します。これにより、セル D3、D4、D5、D6 の値が集計されます。答えは、170 になります。\n",null,"りんご",50,null,"牛肉",50]
["次にオート SUM を試してみましょう。肉類の [金額] 列の下のセル (セル G7) を選択し、[数式]、[オート SUM]、[合計] の順に選択します。Excel によって数式が自動的に入力されます。確認のために、Enter キーを押します。オート SUM 機能には、最もよく使用される関数すべてがあります。\n",null,"オレンジ",20,null,"鶏肉",30]
["以下に便利なショートカットを示します。セル D15 を選択し、Alt キーを押して = キーを押し、Enter キーを押します。これによって合計が自動的に入力されます。",null,"バナナ",60,null,"豚肉",10]
["さらに詳しく",null,"レモン",40,null,"魚肉",50]
["特別課題\n既に試したいずれかの方法を使用して、COUNT 関数を試してみてください。COUNT 関数は、数値を含む範囲内のセルの個数をカウントします。",null,"合計 > ",{"$f":"SUM(D3:D6)","v":170},null,"合計 > "]
["次の手順へ"]
["関数に関する詳細情報",null,"品目","金額",null,"品目","金額"]
["[数式] タブに移動し、関数ライブラリを参照します。テキスト、日付と時刻など、関数がカテゴリ別に表示されます。[関数の挿入] により、関数を名前で検索し、数式の構築に役立つ関数ウィザードを起動できます。\n\n= キーを押した後に関数名の入力を開始すると、Excel の Intellisense が起動し、入力した文字で始まるすべての関数の一覧が表示されます。必要なものが見つかったら、Tab キーを押すと、自動的に関数名が完了し、左かっこが入力されます。さらに、オプションの引数と必須の引数が表示されます。\n\n\n\n次に、いくつかの関数の構造を見てみましょう。SUM 関数は次のように構成されています。",null,"パン",50,null,"パン",50]
["この SUM 関数は、D35 から D38 までのセル内のすべての値と列 H のすべての合計を返すことを意味します。SUM は関数名、D35:D38 は最初の範囲引数 (ほとんどの場合必須)、H:H は 2 番目の範囲引数で、コンマで区切られます。次に、引数を必要としない関数を試してみましょう。\n",null,"ドーナツ",100,null,"ドーナツ",100]
["TODAY 関数は、今日の日付を返します。Excel が再計算するときに自動的に更新されます。",null,"クッキー",40,null,"クッキー",40]
["注目\nこれらのセルを選択します。Excel ウィンドウの右下隅のバーに次のように表示されます。合計:170これはステータス バーと呼ばれ、選択したセルまたは範囲の合計やその他の詳細をすばやく確認するもう 1 つの方法です。 ",null,"ケーキ",50,null,"ケーキ",50]
["重要な詳細情報\nこのセルをダブルクリックします。末尾が 100 であることがわかります。このように数式に数値を配置することはできますが、どうしても必要な場合を除き、お勧めしません。これは、定数として知られていますが、定数があることは忘れやすいものです。代わりに、セル F51 などの別のセルを参照することをお勧めします。このようにすると、数式の内部は容易に表示され、非表示にはなりません。 ",null,"パイ",20,null,"パイ",20]
["Web 上のその他の情報",null,"合計 > ",null,null,"カウント >"]
["SUM 関数の詳細"]
["オート SUM を使用して数値を合計する"]
["COUNT 関数の詳細"]
["Excel の無料オンライン トレーニング"]
["ページのトップへ"]
["次の手順へ"]
{"$rows_empty":12}
[null,null,"果物","金額"]
[null,null,"りんご",50]
[null,null,"オレンジ",20]
[null,null,"バナナ",60]
[null,null,"レモン",40]
[null,null,"合計 > ",{"$f":"SUM(D35:D38)","v":170}]
[]
[]
[]
[]
[null,null,"品目","金額"]
[null,null,"乗用車",20]
[null,null,"トラック",10]
[null,null,"バイク",10]
[null,null,"スケート",40]
[]
[{"$nulls":3},"合計:",null,"追加の値","新しい合計"]
[{"$nulls":3},{"$f":"SUM(D45:D48,100)","v":180},null,100,{"$f":"SUM(D45:D48,F51)","v":180}]

{"sheet":"平均","index":3,"n_rows":15,"n_cols":7,"rows_kept":15}
["AVERAGE 関数"]
["セルの範囲の数値の平均値を取得するには、AVERAGE 関数を使用します。",null,"果物","金額",null,"肉類","金額"]
["セル D7 をクリックし、オート SUM を使用して、AVERAGE 関数を追加します。",null,"りんご",50,null,"牛肉",50]
["セル G7 を選択し、「= AVERAGE(G3:G6) 」と入力して AVERAGE 関数を入力します。 ",null,"オレンジ",20,null,"鶏肉",30]
["セル D15 で、オート SUM を使用するか、別の AVERAGE 関数を入力することができます。 ",null,"バナナ",60,null,"豚肉",10]
["注目\n任意の数字の範囲を選択し、ステータス バーに表示される平均を確認します。\n",null,"レモン",40,null,"魚肉",50]
["前のシートをアクティブにする",null,"平均 >",null,null,"平均 >"]
["次のシートに移動する"]
["特別課題\nMEDIAN または MODE の使用をここで試してください。\n\nMEDIAN は、データ セットの中央の値を提供します。\nMODE は、最も頻繁に発生する値を提供します。\n",null,"品目","金額",null,"品目","金額"]
["Web 上の詳細情報のリンク",null,"パン",50,null,"パン",50]
["AVERAGE 関数の詳細について Web を参照するときに選択します",null,"ドーナツ",100,null,"ドーナツ",100]
["MEDIAN 関数の詳細について Web を参照するときに選択します",null,"クッキー",40,null,"クッキー",40]
["MODE 関数の詳細について Web を参照するときに選択します",null,"ケーキ",50,null,"ケーキ",50]
["Excel の無料トレーニングについて Web を参照するときに選択します",null,"パイ",20,null,"パイ",20]
[null,null,"平均 >"]

{"sheet":"最小値と最大値","index":4,"n_rows":15,"n_cols":7,"rows_kept":15}
["MIN 関数および MAX 関数"]
["MIN 関数を使用してセルの範囲の最小値を取得します。",null,"果物","金額",null,"肉類","金額"]
["MAX 関数を使用してセルの範囲の最大値を取得します。",null,"りんご",50,null,"牛肉",50]
["セル D7 を選択し、オート SUM ウィザードを使用して、MIN 関数を追加します。\n",null,"オレンジ",20,null,"鶏肉",30]
["次にセル G7 を選択し、「=MAX(G3:G6)」と入力して MAX 関数を入力します。\n",null,"バナナ",60,null,"豚肉",10]
["セル D15 で、オート SUM ウィザードを使用するか、MIN または MAX 関数を手動で入力します。 \n",null,"レモン",40,null,"魚肉",50]
["Web 上のその他の情報\n",null,"最小 >",null,null,"最大 >"]
["MIN 関数の詳細情報"]
["MAX 関数の詳細情報",null,"品目","金額",null,"品目","金額"]
["Excel の無料オンライン トレーニング",null,"パン",50,null,"パン",50]
["補足情報\nMIN または MAX を複数の範囲または値と共に使用し、=MIN(A1:A10,B1:B10) または =MAX(A1:A10,B1) のようにそれらの値の大きい値または小さい値を表示できます。ここで B1 には、10 のようなしきい値が含まれ、この場合、数式は 10 より小さい結果を返しません。\n",null,"ドーナツ",100,null,"ドーナツ",100]
[null,null,"クッキー",40,null,"クッキー",40]
[null,null,"ケーキ",50,null,"ケーキ",50]
[null,null,"パイ",20,null,"パイ",20]
[null,null,"最小または最大 >",{"$nulls":3},{"$f":"MIN(G10:G14,10)","v":10}]

{"sheet":"日付と時刻","index":5,"n_rows":47,"n_cols":6,"rows_kept":47,"merged":[[4,2,4,3],[26,2,26,3],[30,2,30,3],[44,2,44,3]]}
["日付関数"]
["コンピューターの地域設定に基づいて現在の日付が表示されます。日付を加算および減算することもできます。"]
["今日の日付を取得する TODAY 関数を試してください。これらは、ライブ関数 (可変関数) なので、ブックを明日開いたときには明日の日付が表示されます。セル D6 に「=TODAY()」と入力します。 \n"]
["日付の減算 - YYYY\"年\"M\"月\"D\"日\" の形式でセル D7 に次の誕生日を入力すると、=D7-D6 によってセル D8 に誕生日が何日後かが表示されます。\n"]
["日付の加算 - 請求書の支払い期限または図書館に本を返却する期限を知りたいと仮定します。日付に日数を追加して確認することができます。セル D10 にランダムな日数を入力します。セル D11 に =D6+D10 を追加して、今日から期限までを計算します。\n",null,"日付関数"]
["補足情報\nExcel では、1900 年 1 月 1 日から始まる日数に基づいて日付と時刻を保持します。時間は、分を基にして日の小数部として保持されます。つまり、2017 年 1 月 1 日 12:30 は実際には 42736.5208 として保存されます。日付や時刻がこのように数字として表示される場合、Ctrl キーを押しながら 1 キーを押し、[表示形式] > [日付] または [時刻] の形式を選択します。 ",null,"今日の日付:",null,null,{"$f":"IF(D6=TODAY(),\"正しいです!\",\"\")","v":""}]
["重要な詳細情報\nまだ誕生日を入力していないため、負の値を表示したくない場合は、= IF(D7=\"\",\"\",D7-D6) のような IF 関数を使用することができます。これは「D7 に何もない場合は、何も表示せず、それ以外の場合は D7 から D6 を引いた結果を表示する」ことを指定します。\n",null,"生年月日:"]
["時刻関数",null,"誕生日までの日数:",{"$f":"D7-D6","v":0}]
["コンピューターの地域設定に基づいて現在の日付が表示されます。時刻を加算および減算することもできます。たとえば、従業員の毎週の作業時間数を把握し、支払いと残業時間を計算する必要がある場合です。\n"]
["セル D28 に「=NOW()」と入力すると、現在の時刻が表示され、Excel で計算するたびに更新されます。時刻の形式を変更する必要がある場合は、Ctrl キーを押しながら 1 キーを押し、[表示形式]、[時刻] を選択して、必要な形式を選択します。\n",null,"猶予期間の日数:"]
["複数の時間を加算する - セル D36 に「=((D35-D32)-(D34-D33))*24」を入力しました。これは、誰かの始業時刻から終業時刻までを計算し、昼食にかけた時間を減算します。数式の末尾にある *24 は、Excel に表示される日の小数部を時間に変換します。ただし、セルを数字として書式設定する必要があります。これを行うには、[ホーム]、[セルの書式設定] (Ctrl キーを押しながら 1 キーを押す)、[表示形式]、[数値] の順に選択し、[小数点以下の桁数] 2 を選択します。",null,"請求書の期限:",{"$f":"D6+D10","v":"00:00:00"}]
["この数式の意味は「退社時刻を取得し、それから出社時刻を減算し、昼食に出た時刻から昼食から帰った時刻までを減算し、それに 24 を乗算して、Excel の小数時間を時間に変換する」、つまり =((退社時刻 - 出社時刻)-(昼食に出た時刻 - 昼食から帰った時刻))*24 となります。"]
["前へ​​"]
["次へ"]
["Web 上のその他の情報"]
["TODAY 関数の詳細"]
["NOW 関数の詳細"]
["DATE 関数の詳細"]
["Excel の無料オンライン トレーニング"]
{"$rows_empty":7}
[null,null,"時刻関数"]
[null,null,"現在の時刻:"]
[]
[]
[null,null,"合計勤務時間:"]
[null,null,"出社時刻:","08:00:00"]
[null,null,"昼食に出た時刻:","12:00:00"]
[null,null,"昼食から帰った時刻:","13:00:00"]
[null,null,"退社時刻:","17:00:00"]
[null,null,"合計時間:",{"$f":"((D35-D32)-(D34-D33))*24","v":8.000000000000002}]
{"$rows_empty":8}
[null,null,"静的な日付と時刻:"]
[null,null,"日付:","2017-09-27"]
[null,null,"時刻:","08:52:00"]

{"sheet":"テキストと数値の結合","index":6,"n_rows":37,"n_cols":6,"rows_kept":37,"merged":[[26,2,26,3],[30,2,30,3],[34,2,34,3]]}
["別のセルのテキストを結合する"]
["Excel で別のセル内にある文字列を結合したいことがよくあります。この例として、姓と名があり、名、姓、またはフルネームとしてそれらを結合したい場合がよくあります。幸いにも、Excel には、アンパサンド (&) 記号があり、Shift キーを押しながら 7 キーを押すと入力できます。\n",null,"名","姓","姓, 名","フルネーム"]
["セル E3 に「=D3&C3」と入力し、姓と名を結合します。 \n",null,"美貴","木村",{"$f":"D3&\", \"&C3","v":"木村, 美貴"},{"$f":"C3&\" \"&D3","v":"美貴 木村"}]
["木村美貴が正しく表示されていません。コンマとスペースを追加する必要があります。そのために引用符を使用して新しいテキスト文字列を作成します。今度は、「=D3&\", \"&C3」と入力します。&\", \"& 部分により、コンマとスペースとセルのテキストを結合します。\n",null,"良太","北"]
["フルネームを作成するには、名と姓を結合しますが、コンマなしのスペースを使用します。F3 に、「= C3 &\" \"& D3」と入力します。\n",null,"1 月","田中"]
["さらに詳しく",null,"莉子","山本"]
["次へ",null,"武","富田"]
["テキストと数値を共に使用する",null,"亨","林"]
["次に、& を使用して、テキストとテキストだけでなく、テキストと数値を結合します。\n\nセル C28:D29 を見てください。個別のセルで日付と時刻はどのように表示されていますか?セル C32:C33 のように、& 記号を使用してそれらを結合できますが、適切に表示されていないようです。残念ながら、Excel が、数値の書式を設定する方法を理解していないので、基本的な形式にそれらを分割します。この場合はシリアル日付になります。結果のテキスト文字列が必要な方法で表示されるように、数式の数字部分の書式設定の方法を明示的に Excel に伝える必要があります。これは、TEXT 関数と表示形式コードを使用して行うことができます。",null,"博士","菊池"]
["セル C36 に、「=C28&\" \"&TEXT(D28,\"YYYY年M月D日\")」と入力します。YYYY\"年\"M\"月\"D\"日\" は、2017 年 9 月 25 日のような年/月/日の日本\nの表示形式コードです。",null,"恵子","早川"]
["セル C37 に、「=C29&\" \"&TEXT(D29,\"H:MM\")」と入力します。H:MM は、13:30 のような時間:分の日本の表示形式コードです。\n\n"]
["注目\n特に大きな数式を読むのが困難な場合がありますが、次のようにスペースで分割することができます。\n\n=C28 & \" \" & TEXT(D28,\"YYYY年M月D日\")"]
["おすすめ\n使用する表示形式コードがわからない場合は、Ctrl キーを押しながら 1 キーを押し、[数値] を選択して、好みの方法でセルを書式設定することができます。その後でユーザー設定のオプションを選択します。表示される表示形式コードを数式にコピーすることができます。"]
["Web 上のその他の情報"]
["TEXT 関数の詳細"]
["テキストと数値の結合"]
["Excel の無料オンライン トレーニング"]
{"$rows_empty":9}
[null,null,"テキストと数値を使用する"]
[null,null,"今日の日付:",{"$f":"TODAY()","v":"2021-10-19"}]
[null,null,"現在の時刻:",{"$f":"NOW()","v":44488.43051053241}]
[]
[null,null,"テキストと数値を結合する"]
[null,null,{"$f":"C28&\" \"&D28","v":"今日の日付: 44488"}]
[null,null,{"$f":"C29&\" \"&D29","v":"現在の時刻: 44488.4305105324"}]
[]
[null,null,"テキストと数値を書式設定する"]
[null,null,{"$f":"C28 &\" \"& TEXT(D28,\"YYYY年M月D日\")","v":"今日の日付: 2021年10月19日"}]
[null,null,{"$f":"C29&\" \"&TEXT(D29,\"H:MM\")","v":"現在の時刻: 10:19"}]

{"sheet":"IF ステートメント","index":7,"n_rows":37,"n_cols":6,"rows_kept":37,"merged":[[7,2,7,3]]}
["IF ステートメント"]
["IF ステートメントを使用すると、条件の間で論理的な比較を行うことができます。IF ステートメントは通常、1 つの条件が true の場合は何か操作を実行し、それ以外の場合は他の操作を実行するように指定します。数式は、テキストや値など、多くの計算を返すことができます。"]
["セル D9 で、「=IF(C9=\"りんご\",TRUE,FALSE)」と入力します。正しい答えは TRUE です。 \n"]
["D9 を D10 にコピーします。オレンジはりんごではないので、ここでの答えは FALSE です。\n"]
["セル D12 の数式を見て、別の例を試してください。最初に =IF(C12<100,\"100 未満\",\"100 以上\") を使用します。セル C12 に 100 を超える数値を入力するとどうなりますか?\n"]
["重要な詳細情報\nTRUE と FALSE は、Excel の数式の他の単語とは異なり、引用符で囲む必要はありません。Excel が自動的に大文字にします。数値も引用符で囲む必要はありません。\"はい\" または \"いいえ\" などの通常のテキストは次のように引用符で囲む必要があります。\n=IF(C9=\"りんご\",\"はい\",\"いいえ\")"]
["さらに詳しく"]
["次へ",null,"IF ステートメント"]
["別の関数と IF ステートメント",null,"りんご"]
["IF ステートメントは、特定の条件が満たされた場合に実行される追加の計算を強制することもできます。ここでは、セルを評価して売上税を課金する必要があるかどうかを判断し、条件が true の場合はそれを計算します。\n",null,"オレンジ"]
["セル F33 に「=IF(E33=\"はい\",F31*消費税,0)」を入力し、値 0.0825 を持つ名前付き範囲として売上税を設定します。この数式では、セル E33 が \"はい\" の場合、セル F31 と売上税を乗算し、それ以外の場合は 0 を返します。\n\nセル E33 で \"はい\" を \"いいえ\" に変更し、計算が変更されるのを確認してください。"]
["次に、配送費が必要な場合に配送費を計算するための IF ステートメントを追加しました。セル F35 に、=IF(E35=\"はい\",SUM(D28:D29)*1.25,0) が表示されます。これは、\"セル E35 がはいの場合、上の表の数量列の合計を取得し、それに 1.25 を掛けます。それ以外の場合は 0 を返します\" と指定しています。\n",null,50,{"$f":"IF(C12<100,\"100 未満\",\"100 以上\")","v":"100 未満"}]
["次に、セル F35 の数式で 1.25 を \"配送費\" に変更します。入力を開始すると、Excel の自動修正で検索されます。表示されたら、Tab キーを押して入力します。これは、名前付き範囲であり、[数式] > [名前の定義] で入力しました。次に、配送費を変更する必要がある場合、1 つの場所でのみそれを行う必要があり、ブックのどこでも \"配送費\" という名前を使用することができます。\n\n"]
["補足情報\n数式を作成すると、数式で参照されているすべての範囲の周囲に色付きの枠線が自動的に表示され、数式の対応する範囲が同じ色になります。これは、F33 のセルを選択して、F2 キーを押して数式を編集すると表示できます。"]
["専門的なヒント\n名前付き範囲を使用すると、1 つの場所で用語や値を定義して、ブック全体でそれらを再利用することができます。[数式] > [名前の管理] に移動して、このブックのすべての名前付き範囲を表示できます。詳細については、ここをクリックしてください。\n"]
["前へ​​"]
["次へ"]
["Web 上のその他の情報"]
["IF 関数の詳細"]
["IFS 関数の詳細"]
["高度な IF ステートメント"]
["Excel の無料オンライン トレーニング"]
[]
[]
[]
[]
[null,null,"品目","数量","コスト","合計"]
[null,null,"ウィジェット",2,{"v":9.760711585683554,"d":"¥9.76"},{"$f":"'IF ステートメント'!$E$28:$E$29*'IF ステートメント'!$D$28:$D$29","v":{"v":19.521423171367108,"d":"¥19.52"}}]
[null,null,"安物",3,{"v":3.4189202461080024,"d":"¥3.42"},{"$f":"'IF ステートメント'!$E$28:$E$29*'IF ステートメント'!$D$28:$D$29","v":{"v":10.256760738324008,"d":"¥10.26"}}]
[]
[{"$nulls":3},"小計",{"$f":"SUM('IF ステートメント'!$E$28:$E$29)","v":{"v":13.179631831791557,"d":"¥13.18"}},{"$f":"SUM('IF ステートメント'!F28:F29)","v":{"v":29.778183909691116,"d":"¥29.78"}}]
[]
[{"$nulls":3},"消費税","はい",{"$f":"IF(E33=\"はい\",F31*消費税,0)","v":{"v":2.456700172549517,"d":"¥2.46"}}]
[]
[{"$nulls":3},"配送費","はい",{"$f":"IF(E35=\"はい\",SUM(D28:D29)*1.25,0)","v":{"v":6.25,"d":"¥6.25"}}]
[]
[{"$nulls":3},"合計",null,{"$f":"SUM(F33,F31,F35)","v":{"v":38.48488408224063,"d":"¥38.48"}}]

{"sheet":"VLOOKUP","index":8,"n_rows":43,"n_cols":7,"rows_kept":43}
["VLOOKUP"]
["VLOOKUP は、Excel で最も広く使用されている関数の 1 つです (私たちのお気に入りの 1 つでもあります)。VLOOKUP では、左側の列の値を参照し、一致するものが見つかった場合に右側にある別の列の情報を返すことができます。VLOOKUP は次のように指定します。\n"]
["=VLOOKUP(A1,B:C,2,FALSE)"]
["検索対象"]
["見つかった場合は、右側のいくつ目の列の値を取得するか?"]
["検索場所"]
["完全一致と近似一致のどちらを使用するか"]
["セル D22 に「= VLOOKUP(C22,C17:D20,2,FALSE)」と入力します。りんごの正しい答えは、50 です。VLOOKUP は、\"りんご\" を検索して見つけ、右の列を調べて、数を返しました。\n\n"]
["次に \"肉類\" セクションのセル G22 で試してください。最終的に、= VLOOKUP(F22,F17:G20,2,FALSE) になります。\n\n"]
["実験\nドロップダウン リストから別の項目を選択してください。結果のセルがすぐに新しい値に更新されます。"]
["さらに詳しく"]
["次へ"]
["VLOOKUP と #N/A"]
["VLOOKUP が指定された項目を見つけられずに、エラー (#N/A) を返すような状況が発生することがあります。場合によっては、単に参照値が存在しないか、参照セルにまだ値が入力されていないために発生します。\n"]
["参照値が存在することがわかっていても、参照セルが空白の場合に、エラーを非表示にする場合は、IF ステートメントを使用することができます。この例では、次のようにセル D43 で既存の VLOOKUP 数式をラップします。\n\n=IF(C43=\"\",\"\",VLOOKUP(C43,C37:D41,2,FALSE))\n\nこれは、セル C43 に何もない (\"\") 場合は何も返さず、それ以外の場合は、VLOOKUP の結果を返すことを指定します。数式の末尾にある 2 つ目のかっこに注意してください。これは IF ステートメントを終了します。\n"]
["参照値が存在するかどうかわからないが、#N/A エラーを非表示にしたい場合は、IFERROR というエラー処理関数をセル G43 で次のように使用できます。=IFERROR(VLOOKUP(F43,F37:G41,2,FALSE),\"\")。IFERROR は、VLOOKUP が有効な結果を返す場合は、それを表示し、それ以外の場合は何も表示しない (\"\") ことを指定しています。ここでは何も表示しませんが (\"\")、数字 (0、1、2 など)、または \"式が正しくありません\" のようなテキストも使用できます。\n",null,"果物","金額",null,"肉類","金額"]
["重要な詳細情報\nIFERROR は一括エラー ハンドラーと呼ばれ、数式で発生する可能性があるすべてのエラーを非表示にします。このため、式に修正が必要なエラーがあることを Excel から通知されている場合は、問題が発生する可能性があります。\n\n一般に、数式が確実に正常に動作するまで、数式にエラー ハンドラーを追加しないことをお勧めします。",null,"りんご",50,null,"牛肉",50]
["前へ​​",null,"オレンジ",20,null,"鶏肉",30]
["次へ",null,"バナナ",60,null,"豚肉",10]
["Web 上のその他の情報",null,"レモン",40,null,"魚肉",50]
["VLOOKUP 関数の詳細"]
["INDEX/MATCH 関数の詳細",null,"りんご",null,null,"豚肉"]
["IFERROR 関数の詳細"]
["ピボットテーブルを使用してワークシート データを分析する"]
["Excel の無料オンライン トレーニング"]
{"$rows_empty":9}
[null,null,"セル D42 の SUM 関数が話すことができるなら、次のように言うでしょう。セル D38、D39、D40、D41 の値を加算しなさい。"]
[null,null,"品目","金額",null,"品目","金額"]
[null,null,"パン",50,null,"パン",50]
[null,null,"ドーナツ",100,null,"ドーナツ",100]
[null,null,"クッキー",40,null,"クッキー",40]
[null,null,"ケーキ",50,null,"ケーキ",50]
[null,null,"パイ",20,null,"パイ",20]
[]
[{"$nulls":3},{"$f":"VLOOKUP(C43,C37:D41,2,FALSE)","v":{"$error":"#N/A"}},null,"菓子",{"$f":"IFERROR(VLOOKUP(F43,F37:G41,2,FALSE),\"\")","v":""}]

{"sheet":"条件付き関数","index":9,"n_rows":123,"n_cols":34,"rows_kept":123}
["条件付き関数 - SUMIF"]
["条件付き関数を使用すると、指定した条件を基にして、範囲の合計、平均、カウント、最小値、最大値を取得することができます。たとえば、リスト内のすべての果物の中のりんごの数を取得することができます。フロリダ産のオレンジの数を取得したりできます。",null,"果物","金額",null,"果物","種類","金額",{"$nulls":17},"果物",null,"りんご",null,"オレンジ",null,"バナナ",null,"レモン"]
["SUMIF では、持っているりんごの数など、特定の条件で検索した範囲内で別の範囲を合計することができます。セル D17 を選択し、「= SUMIF(C3:C14,C17,D3:D14)」と入力します。SUMIF は次のように構成されています。",null,"りんご",50,null,"りんご","富士",50,{"$nulls":17},"りんご",null,"富士",null,"フロリダ",null,"キャベンディッシュ",null,"ラフ"]
[{"$f":"SUMIF(C3:C14,C17,D3:D14)","v":150},null,"オレンジ",20,null,"オレンジ","フロリダ",20,{"$nulls":17},"オレンジ",null,"ハニークリスプ",null,"ナベル",null,"レディフィンガー",null,"エウレカ"]
["検索する範囲",null,"バナナ",60,null,"バナナ","キャベンディッシュ",60,{"$nulls":17},"バナナ"]
["検索する値 (テキストまたは数値)",null,"レモン",40,null,"レモン","ラフ",40,{"$nulls":17},"レモン"]
["一致した項目ごとに、合計を計算する範囲",null,"りんご",50,null,"りんご","ハニークリスプ",50]
["SUMIFS は、SUMIF と同じですが、複数の条件を使用できます。したがってこの例では、果物だけではなく果物と種類を検索できます。セル H17 を選択し、「= SUMIFS(H3:H14,F3:F14,F17,G3:G14,G17)」と入力します。SUMIFS は次のように構成されています。\n",null,"オレンジ",20,null,"オレンジ","ナベル",20]
["=SUMIFS(H3:H14,F3:F14,F17,G3:G14,G17)",null,"バナナ",60,null,"バナナ","レディフィンガー",60]
["合計する範囲",null,"レモン",40,null,"レモン","エウレカ",40]
["これは、一致するものを探す最初の範囲です",null,"りんご",50,null,"りんご","ハニークリスプ",50]
["これは、最初に照合する条件です",null,"オレンジ",20,null,"オレンジ","ナベル",20]
["これは、一致するものを探す 2 番目の範囲です",null,"バナナ",60,null,"バナナ","キャベンディッシュ",60]
["これは、2 番目に照合する条件です",null,"レモン",40,null,"レモン","エウレカ",40]
["専門的なヒント\n果物と種類の各セルにドロップダウン リストがあり、別の果物を選択できます。実際に試して、自動的に更新される数式を確認してください。"]
["さらに詳しく",null,"果物","SUMIF",null,"果物","種類","SUMIFS"]
["次の手順へ",null,"りんご",null,null,"オレンジ","フロリダ"]
["条件付き関数 - COUNTIF"]
["COUNTIF と COUNTIFS を使用して、指定した条件に基づいて範囲内の値の個数をカウントすることができます。これらは他の IF および IFS 関数とは少し異なり、1 つの条件範囲と条件のみを使用します。1 つの範囲を評価した後に、別の範囲を探して集計することはありません。"]
["セル D64 を選択し、「=COUNTIF(C50:C61,C64)」と入力します。COUNTIF は次のように構成されています。"]
["=COUNTIF(C50:C61,C64)"]
["検索する範囲"]
["検索する値 (テキストまたは数値)"]
["COUNTIFS は、SUMIF と同じですが、複数の条件を使用できます。つまり、この例では、果物だけではなく果物と種類を検索できます。セル H64 を選択し、「=COUNTIFS(F50:F61,F64,G50:G61,G64)」と入力します。COUNTIFS は次のように構成されています。\n"]
["=COUNTIFS(F50:F61,F64,G50:G61,G64)"]
["これはカウントする最初の範囲です"]
["これは、最初に照合する条件です"]
["これはカウントする 2 番目の範囲です"]
["これは、2 番目に照合する条件です"]
["さらに詳しく"]
["次へ"]
["その他の条件付き関数"]
["SUMIF、SUMIFS、COUNTIF、および COUNTIFS は既に説明しました。次に、AVERAGEIF/S、MAXIFS、MINIFS などの他の関数を試してみましょう。これらはすべて同じ構造なので、1 つの数式を記述すれば、関数名を必要な関数に置き換えるだけで使用できます。セル E106 に必要な関数がすべて記述されているので、それらをコピーして貼り付けるか、自分で入力してみて練習することもできます。\n\nSUMIF\t            =SUMIF(C92:C103,C106,E92:E103)\nSUMIFS\t=SUMIFS(E92:E103,C92:C103,C106,D92:D103,D106)\nAVERAGEIF\t=AVERAGEIF(C92:C103,C106,E92:E103)\nAVERAGEIFS\t=AVERAGEIFS(E92:E103,C92:C103,C106,D92:D103,D106)\nCOUNTIF\t=COUNTIF(C92:C103,C106)\nCOUNTIFS\t=COUNTIFS(C92:C103,C106,D92:D103,D106)\nMAXIFS\t=MAXIFS(E92:E103,C92:C103,C106,D92:D103,D106)\nMINIFS\t=MINIFS(E92:E103,C92:C103,C106,D92:D103,D106)\n"]
["さらに詳しく"]
["次へ"]
["引数の値と SUMIF"]
["次に、大なり (>) を使用して、特定の数よりも大きいすべての値を見つける SUMIF 関数の例を示します。"]
[{"$f":"SUMIF(D118:D122,\">=50\")","v":200}]
["次の条件に基づいて、いくつかの値を合計します。"]
["…これらのセルを調べて…\n "]
["…値が 50 より大きい場合は合計します。\n "]
["注:多くの条件付き式を作成する場合は、ピボットテーブルがよい解決策となる可能性があります。詳細についてはこのピボットテーブルの記事を参照してください。"]
["Web 上のその他の情報"]
["SUMIF 関数の詳細"]
["SUMIFS 関数の詳細"]
["COUNTIF 関数の詳細"]
["COUNTIFS 関数の詳細"]
["AVERAGEIF 関数の詳細"]
["AVERAGEIFS 関数の詳細",null,"果物","金額",null,"果物","種類","金額"]
["MINIFS 関数の詳細",null,"りんご",50,null,"りんご","富士",50]
["MAXIFS 関数の詳細",null,"オレンジ",20,null,"オレンジ","フロリダ",20]
["ドロップダウン リストを作成する",null,"バナナ",60,null,"バナナ","キャベンディッシュ",60]
["Excel の無料オンライン トレーニング",null,"レモン",40,null,"レモン","ラフ",40]
["ページのトップへ",null,"りんご",50,null,"りんご","ハニークリスプ",50]
["次へ",null,"オレンジ",20,null,"オレンジ","ナベル",20]
[null,null,"バナナ",60,null,"バナナ","レディフィンガー",60]
[null,null,"レモン",40,null,"レモン","エウレカ",40]
[null,null,"りんご",50,null,"りんご","ハニークリスプ",50]
[null,null,"オレンジ",20,null,"オレンジ","ナベル",20]
[null,null,"バナナ",60,null,"バナナ","キャベンディッシュ",60]
[null,null,"レモン",40,null,"レモン","エウレカ",40]
[]
[null,null,"果物","COUNTIF",null,"果物","種類","COUNTIFS"]
[null,null,"りんご",{"$f":"COUNTIF(C50:C61,C64)","v":3},null,"オレンジ","フロリダ",{"$f":"COUNTIFS(F50:F61,F64,G50:G61,G64)","v":1}]
{"$rows_empty":26}
[null,null,"果物","種類","金額"]
[null,null,"りんご","富士",50]
[null,null,"オレンジ","フロリダ",20]
[null,null,"バナナ","キャベンディッシュ",60]
[null,null,"レモン","ラフ",40]
[null,null,"りんご","ハニークリスプ",50]
[null,null,"オレンジ","ナベル",20]
[null,null,"バナナ","レディフィンガー",60]
[null,null,"レモン","エウレカ",40]
[null,null,"りんご","ハニークリスプ",50]
[null,null,"オレンジ","ナベル",20]
[null,null,"バナナ","キャベンディッシュ",60]
[null,null,"レモン","エウレカ",40]
[]
[null,null,"果物","種類","実際に操作してみましょう"]
[null,null,"レモン","エウレカ",{"$f":"AVERAGEIFS(E92:E103,C92:C103,C106,D92:D103,D106)","v":40}]
{"$rows_empty":10}
[null,null,"項目","金額"]
[null,null,"パン",50]
[null,null,"ドーナツ",100]
[null,null,"クッキー",40]
[null,null,"ケーキ",50]
[null,null,"パイ",20]
[{"$nulls":3},{"$f":"SUMIF(D118:D122,\">=50\")","v":200}]

{"sheet":"関数ウィザード","index":10,"n_rows":14,"n_cols":4,"rows_kept":14}
["関数ウィザードを使用する"]
["必要な関数の名前がわかっていても、その構築方法がわからない場合は、関数ウィザードを使用することができます。\n"]
["セル D10 を選択し、[数式]、[関数の挿入] の順に選択し、[関数の検索] ボックスに「VLOOKUP」と入力し、[検索開始] を押します。強調表示されている VLOOKUP が表示されたら、下部にある [OK] をクリックします。一覧で関数を選択すると、構文が表示されます。\n"]
["次に、それぞれの該当するテキスト ボックスに関数の引数を入力します。1 つずつ入力すると、Excel によって評価されてその結果が表示され、下部に最終的な結果が表示されます。各セクションを入力すると、各引数の条件が、フォームの下部に一覧表示されます。完了したときに [OK] をクリックすると、数式が入力されます。\n\n\n",null,"果物","金額"]
["注目\n最終的に =VLOOKUP(C10,C5:D8,2,FALSE) になります。",null,"りんご",50]
["補足情報\nセルと範囲の参照を入力するか、マウスを使用して選択します。",null,"オレンジ",20]
["補足情報\n各引数のセクションを入力すると、引数の説明がフォーム下部の数式の結果の上に表示されます。\n",null,"バナナ",60]
["前へ​​",null,"レモン",40]
["次へ"]
["Web 上のその他の情報",null,"りんご",{"$f":"VLOOKUP(C10,C5:D8,2,FALSE)","v":50}]
["Excel の数式の概要"]
["Excel の関数 (カテゴリ順)"]
["Excel 関数 (アルファベット順)"]
["Excel の無料オンライン トレーニング"]

{"sheet":"数式のエラー","index":11,"n_rows":36,"n_cols":4,"rows_kept":36}
["数式のエラーの修正"]
["数式でエラーが発生し、#ErrorName と表示されることがあります。エラーは、正しく機能しない部分を指摘してくれるので役に立ちますが、修正が困難な場合があります。幸いにも、エラーの原因を追跡して修正するために役立ついくつかのオプションがあります。\n"]
["エラー チェック - [数式] > [エラー チェック] に移動します。これによって、特定のエラーの一般的な原因を表示するダイアログが表示されます。セル D9 では、\"りんご1\" と一致する値がないために #N/A エラーが発生しています。これは、存在する値を使用して修正するか、IFERROR でエラーを抑制するか、存在する値を使用した場合に消えることがわかっているので無視することができます。\n",null,"果物","金額"]
["[このエラーに関するヘルプ] をクリックすると、エラー メッセージに固有のヘルプ トピックが開きます。[計算の過程を表示] をクリックすると、[数式の検証] ダイアログ ボックスが読み込まれます。\n",null,"りんご",50]
["[検証] をクリックするたびに、一度に 1 つのセクションずつ数式が検証されます。エラーが発生する理由は必ずしもわかりませんが、エラーの場所がわかります。そこから、ヘルプ トピックを参照し、数式の不具合の原因を推定します。\n",null,"オレンジ",20]
["実験\nここでの問題は何でしょう?ヒント:すべての項目を合計しようとしています。",null,"バナナ",60]
["補足情報\n[オプション] をクリックすると、Excel のエラーを表示したり、無視したりするときのルールを設定できます。\n",null,"レモン",40]
["前へ​​"]
["次へ",null,"りんご1",{"$f":"VLOOKUP(C9,C3:D7,2,FALSE)","v":{"$error":"#N/A"}}]
["Web 上のその他の情報"]
["数式のエラーを検出する"]
["不備のある数式を回避する方法"]
["入れ子になっている数式を一度に 1 つのステップずつ評価する"]
["Excel の無料オンライン トレーニング"]
{"$rows_empty":15}
[null,null,"果物","金額"]
[null,null,"りんご",50]
[null,null,"オレンジ",20]
[null,null,"バナナ",60]
[null,null,"レモン",40]
[]
[null,null,"合計",{"$f":"sume(D31:D34)","v":{"$error":"#NAME?"}}]

{"sheet":"詳細情報","index":12,"n_rows":6,"n_cols":1,"rows_kept":6}
["Excel についてさらに知りたい場合"]
["Alt + Q キーを押して、知りたい操作を入力します。"]
["引き続き機能を探してみましょう。Excel について学ぶことが他にもあります。"]
["LinkedIn ラーニング:ビデオ コース—初心者から上級者まですべてのレベル。自分のペースで進めてください。\n"]
["コミュニティ:質問したり、他の Excel ファンと交流したりします。\n"]
["その他の新機能\nOffice 365 サブスクリプションをお持ちの場合は、更新プログラムと新機能を継続的に取得できます。\n\n"]